bitfinex-derivatives/quotes_SOLF0:USTF0_20260126
["timestamp","ask_amount","ask_price","bid_price","bid_amount"]
[1769440169223,2.39927902,123.63,123.57,10.56390926]
[1769440169413,2.39927902,123.63,123.57,3.27300926]
[1769440172427,5.94147909,123.61,123.55,3.27300926]
[1769440172621,2.39927902,123.6,123.55,3.27300926]
[1769440173722,3.54220007,123.59,123.52,3.27300926]
[1769440173920,2.39927902,123.58,123.52,3.27300926]
[1769440175122,2.39927902,123.58,123.52,10.56680926]
[1769440175326,3.54220007,123.61,123.53,3.27300926]
[1769440175530,5.94147909,123.61,123.54,3.27300926]
[1769440175722,13.23007909,123.61,123.54,10.56570926]
[1769440176030,5.94147909,123.58,123.52,3.27300926]
[1769440176927,5.94147909,123.57,123.5,3.27300926]
[1769440177120,5.94147909,123.57,123.46,414.4269]
[1769440177121,5.94147909,123.55,123.47,5.67228828]
[1769440177428,2.39927902,123.54,123.47,3.27300926]
[1769440177619,2.39927902,123.54,123.47,10.56930926]
[1769440178425,2.39927902,123.54,123.48,3.27300926]
[1769440178625,5.94147909,123.57,123.5,3.27300926]
[1769440179129,5.94147909,123.57,123.5,10.56790926]
[1769440179328,3.54220007,123.59,123.52,3.27300926]
[1769440179534,2.39927902,123.58,123.52,3.27300926]
[1769440179826,2.39927902,123.59,123.53,3.27300926]
[1769440180032,2.39927902,123.61,123.55,3.27300926]
[1769440180224,2.39927902,123.6,123.55,3.27300926]
[1769440180723,2.39927902,123.61,123.55,3.27300926]
[1769440181332,2.39927902,123.62,123.56,3.27300926]
[1769440182224,3.54220007,123.63,123.56,10.56450926]
[1769440182425,5.94147909,123.63,123.56,12.96378828]
[1769440182726,3.54220007,123.63,123.56,12.96378828]
[1769440184427,2.39927902,123.67,123.6,3.27300926]
[1769440184627,5.94147909,123.67,123.6,3.27300926]
[1769440185432,3.54220007,123.67,123.61,2.39927902]
[1769440185729,3.54220007,123.67,123.61,9.68777852]
[1769440186532,3.54220007,123.67,123.61,2.39937852]
[1769440186724,3.54220007,123.67,123.6,5.67238778]
[1769440186920,13.22667859,123.67,123.6,5.67238778]
[1769440187227,13.22667859,123.67,123.6,3.27300926]
[1769440187423,3.54220007,123.67,123.6,12.96148778]
[1769440188326,7.2844,123.69,123.62,5.67238778]
[1769440188525,5.94157859,123.7,123.62,5.67238778]
[1769440188728,5.94157859,123.7,123.63,2.39937852]
[1769440189328,5.94157859,123.7,123.62,5.67238778]
[1769440189535,10.76577196,123.69,123.62,5.67238778]
[1769440190035,3.48187196,123.67,123.6,2.39937852]
[1769440190632,3.48187196,123.67,123.6,12.91144709]
[1769440191232,3.48187196,123.67,123.61,2.39937852]
[1769440191735,5.88125048,123.67,123.6,12.91144709]
[1769440192733,13.16645048,123.67,123.6,5.62234709]
[1769440194123,13.16705048,123.66,123.59,2.39937852]
[1769440194335,13.16705048,123.66,123.58,5.62234709]
[1769440194534,5.88125048,123.66,123.58,5.62234709]
[1769440194725,7.2862,123.65,123.58,5.62234709]
[1769440195330,5.88125048,123.66,123.59,3.22296857]
[1769440196433,3.48187196,123.66,123.59,5.62234709]
[1769440197029,5.88125048,123.66,123.59,3.22296857]
[1769440198932,3.48187196,123.66,123.59,5.62234709]
[1769440199736,10.76747196,123.66,123.59,3.22296857]
[1769440200031,5.88125048,123.67,123.6,3.22296857]
[1769440200232,5.88125048,123.67,123.6,5.62234709]
[1769440200233,3.48187196,123.67,123.6,5.62234709]
[1769440200432,3.48187196,123.67,123.61,3.22296857]
[1769440200834,3.48187196,123.65,123.58,9.68907852]
[1769440201130,5.88125048,123.64,123.57,3.22296857]
[1769440201536,5.88125048,123.64,123.57,10.51376857]
[1769440201736,5.88125048,123.64,123.58,3.22296857]
[1769440202439,5.88125048,123.64,123.58,10.51316857]
[1769440202835,5.88125048,123.66,123.59,3.22296857]
[1769440203234,3.48187196,123.65,123.59,10.51256857]
[1769440203844,3.48187196,123.65,123.59,3.22296857]
[1769440204037,2.39937852,123.64,123.59,3.22296857]
[1769440204242,5.88125048,123.65,123.59,3.22296857]
[1769440204642,3.48187196,123.65,123.59,3.22296857]
[1769440204944,3.48187196,123.65,123.59,10.51256857]
[1769440205138,2.39937852,123.66,123.6,3.22296857]
[1769440205439,5.88125048,123.69,123.63,7.2874]
[1769440205632,5.88125048,123.69,123.62,3.22296857]
[1769440206044,264.1,123.72,123.62,10.51086857]
[1769440206045,5.88125048,123.68,123.62,10.51086857]
[1769440206242,2.39937852,123.69,123.62,10.51086857]
[1769440206643,5.88125048,123.69,123.62,10.51086857]
[1769440207043,5.88125048,123.69,123.63,7.2873]
[1769440207245,5.88125048,123.69,123.62,3.22296857]
[1769440207453,264.1,123.72,123.65,3.22296857]
[1769440207454,266.49937852,123.72,123.65,3.22296857]
[1769440207755,3.48187196,123.73,123.67,3.22296857]
[1769440208146,3.48187196,123.73,123.68,7.2844]
[1769440208346,3.48187196,123.73,123.67,3.22296857]
[1769440208347,5.88125048,123.73,123.67,3.22296857]
[1769440208848,2.39937852,123.74,123.67,5.62234709]
[1769440209559,3.48187196,123.75,123.69,10.50676857]
[1769440209758,3.48187196,123.75,123.69,3.22296857]
[1769440211142,3.48187196,123.78,123.67,116.54366857]
[1769440211347,3.48187196,123.78,123.67,3.22296857]
[1769440211348,3.48187196,123.75,123.67,3.22296857]
[1769440211544,3.48187196,123.75,123.68,7.2843]
[1769440211950,3.48187196,123.75,123.68,10.50726857]
[1769440212347,264.82,123.77,123.7,3.22296857]
[1769440212750,3.48187196,123.78,123.7,3.22296857]
[1769440215047,3.48187196,123.77,123.67,3.22296857]
[1769440215250,3.48187196,123.76,123.67,3.22296857]
[1769440215455,3.48187196,123.76,123.64,113.344]
[1769440215456,3.48187196,123.74,123.64,3.22296857]
[1769440215652,3.48187196,123.73,123.64,3.22296857]
[1769440215856,3.48187196,123.72,123.62,3.22296857]
[1769440216152,3.48187196,123.7,123.62,3.22296857]
[1769440216759,9.59595403,123.69,123.62,3.22296857]
[1769440216958,7.2846,123.68,123.62,3.22296857]
[1769440219251,3.48102869,123.66,123.59,3.24369343]
[1769440219457,3.48102869,123.63,123.56,3.24369343]
[1769440219667,7.2887,123.61,123.56,3.24369343]
[1769440219959,7.2887,123.61,123.52,3.24369343]
[1769440220159,16.88291076,123.63,123.53,3.24369343]
[1769440220362,3.48102869,123.62,123.53,3.24369343]
[1769440220662,3.48102869,123.62,123.54,3.24369343]
[1769440221155,113.3441,123.65,123.55,3.24369343]
[1769440221156,3.48102869,123.65,123.55,3.24369343]
[1769440221354,3.48102869,123.64,123.57,3.24369343]
[1769440221559,10.76792869,123.64,123.57,3.24369343]
[1769440221861,3.48102869,123.64,123.53,3.24369343]
[1769440222061,3.48102869,123.64,123.54,3.24369343]
[1769440222459,264.42,123.65,123.58,3.24369343]
[1769440222762,10.76642869,123.67,123.58,3.24369343]
[1769440223165,10.76642869,123.67,123.59,3.24369343]
[1769440223457,3.48102869,123.65,123.55,3.24369343]
[1769440223658,3.48102869,123.64,123.55,3.24369343]
[1769440224455,3.48102869,123.63,123.55,3.24369343]
[1769440224660,3.48102869,123.62,123.55,3.24369343]
[1769440224860,3.48102869,123.62,123.52,10.53729343]
[1769440225068,10.76922869,123.62,123.52,10.53729343]
[1769440225261,9.59511076,123.61,123.52,3.24369343]
[1769440225564,3.48102869,123.6,123.49,3.24369343]
[1769440225764,9.59511076,123.59,123.49,10.53899343]
[1769440225956,3.48102869,123.58,123.49,10.53899343]
[1769440226157,3.48102869,123.58,123.49,3.24369343]
[1769440226360,3.48102869,123.58,123.49,10.53919343]
[1769440227965,3.48102869,123.62,123.52,3.24369343]
[1769440228865,10.76942869,123.62,123.53,7.2931]
[1769440229065,10.76942869,123.62,123.53,10.53679343]
[1769440229258,10.76942869,123.62,123.54,3.24369343]
[1769440229460,220.48,123.63,123.55,3.24369343]
[1769440229964,10.76812869,123.64,123.55,3.24369343]
[1769440230167,3.48102869,123.63,123.55,3.24369343]
[1769440230371,3.48102869,123.62,123.52,186.64369343]
[1769440230664,3.48102869,123.62,123.54,10.53629343]
[1769440231268,10.76972869,123.61,123.52,190.6935]
[1769440231464,10.76972869,123.61,123.51,3.24369343]
[1769440231465,3.48102869,123.6,123.51,3.24369343]
[1769440231870,3.48102869,123.58,123.51,3.24369343]
[1769440232871,10.77142869,123.58,123.51,3.24369343]
[1769440233766,3.48102869,123.58,123.51,3.24369343]
[1769440233958,343.2606,123.61,123.51,3.24369343]
[1769440233959,7.2896,123.6,123.51,3.24369343]
[1769440234359,233.36102869,123.61,123.52,3.24369343]
[1769440234567,233.36102869,123.61,123.53,3.24369343]
[1769440234761,3.48102869,123.66,123.55,3.24369343]
[1769440234965,3.48102869,123.66,123.58,3.24369343]
[1769440235669,3.33590589,123.72,123.61,116.86738383]
[1769440235871,3.33590589,123.75,123.66,3.49458383]
[1769440237178,3.33590589,123.77,123.68,3.49458383]
[1769440237766,9.44998796,123.8,123.69,3.49458383]
[1769440238165,3.33590589,123.79,123.69,3.49458383]
[1769440238466,3.33590589,123.78,123.69,3.49458383]
[1769440238975,3.33590589,123.81,123.71,3.49458383]
[1769440239171,3.33590589,123.81,123.72,3.49458383]
[1769440239364,263.36,123.82,123.72,3.49458383]
[1769440239569,3.33590589,123.81,123.72,3.49458383]
[1769440239968,3.33590589,123.8,123.72,3.49458383]
[1769440240164,3.33590589,123.77,123.66,113.326]
[1769440240471,3.33590589,123.77,123.67,3.49458383]
[1769440240774,9.44998796,123.76,123.67,3.49458383]
[1769440241271,4.74225061,123.82,123.71,3.49458383]
[1769440241474,9.44998796,123.86,123.74,3.49458383]
[1769440241674,3.33590589,123.86,123.77,3.49458383]
[1769440242369,3.33590589,123.84,123.73,3.49458383]
[1769440242566,3.33590589,123.84,123.74,3.49458383]
[1769440242774,3.33590589,123.87,123.76,3.49458383]
[1769440242971,3.33590589,123.86,123.76,3.49458383]
[1769440243676,3.33590589,123.84,123.73,10.77588383]
[1769440243879,3.33590589,123.84,123.74,3.49458383]
[1769440244078,3.33590589,123.84,123.75,3.49458383]
[1769440244373,113.1133,123.9,123.73,113.263]
[1769440244374,3.33590589,123.9,123.8,3.49458383]
[1769440244780,3.33590589,123.97,123.83,3.49458383]
[1769440244974,119.14468207,124.0,123.87,3.49458383]
[1769440244975,113.0306,124.0,123.87,3.49458383]
[1769440245183,112.9696,124.06,123.92,119.20638207]
[1769440245481,112.9417,124.09,123.94,113.0739]
[1769440245779,22.06234547,124.1,123.97,113.046]
[1769440245975,30.39478239,124.13,124.0,113.0188]
[1769440246275,22.06234547,124.1,123.97,297.506]
[1769440246467,22.06234547,124.07,123.95,113.0622]
[1769440246666,22.06234547,124.07,123.97,113.0468]
[1769440246879,22.06234547,124.07,123.98,113.0378]
[1769440247067,22.06234547,124.06,123.93,297.6609]
[1769440247270,22.06234547,124.05,123.93,184.58]
[1769440247473,28.17642754,124.05,123.93,184.58]
[1769440247679,22.06234547,124.04,123.93,184.58]
[1769440247877,22.06234547,124.03,123.93,184.58]
[1769440248076,135.06104547,124.03,123.89,298.3553]
[1769440248273,22.06234547,124.0,123.88,113.125]
[1769440248677,22.06234547,123.99,123.88,113.125]
[1769440248880,22.06234547,123.99,123.89,113.1163]
[1769440249084,22.06234547,123.99,123.9,113.1094]
[1769440249288,22.06234547,124.02,123.91,113.0981]
[1769440249474,22.06234547,124.02,123.91,113.1008]
[1769440249769,22.06234547,124.02,123.91,113.101]
[1769440249974,22.06234547,124.02,123.93,113.083]
[1769440250179,6.08850425,124.07,123.98,113.037]
[1769440250482,134.98094547,124.12,123.98,298.837]
[1769440250783,134.98624547,124.11,123.98,298.837]
[1769440250978,22.06234547,124.11,124.01,113.01]
[1769440251172,22.06234547,124.11,124.02,113.0008]
[1769440251384,22.06234547,124.12,124.0,113.0192]
[1769440251681,1.4028864,124.13,124.08,112.9454]
[1769440251878,28.77434435,124.17,124.06,112.9592]
[1769440252074,28.77434435,124.25,124.12,112.9089]
[1769440252375,380.36420984,124.27,124.14,6.08850425]
[1769440252579,267.58140984,124.27,124.15,112.8816]
[1769440252779,267.58140984,124.27,124.15,118.97010425]
[1769440252973,29.01575419,124.27,124.14,112.8889]
[1769440253175,6.08850425,124.26,124.14,112.8868]
[1769440253482,29.01575419,124.27,124.15,118.96590425]
[1769440253687,29.01575419,124.27,124.16,112.8714]
[1769440253987,29.01575419,124.27,124.15,112.8827]
[1769440254173,29.01575419,124.27,124.15,112.8826]
[1769440254374,29.01575419,124.27,124.15,120.1391]
[1769440254685,29.01575419,124.27,124.1,112.9223]
[1769440254686,28.77434435,124.22,124.11,112.9185]
[1769440254882,28.77434435,124.22,124.13,112.9011]
[1769440255072,112.7876,124.26,124.11,112.9185]
[1769440255073,141.57434435,124.25,124.11,112.9185]
[1769440255274,0.24140984,124.27,124.17,112.8618]
[1769440255586,0.24140984,124.27,124.17,301.4048]
[1769440255782,0.24140984,124.27,124.2,112.836]
[1769440256091,0.24140984,124.27,124.17,301.4036]
[1769440256291,29.01575419,124.27,124.15,189.1]
[1769440256584,28.77434435,124.25,124.13,112.9023]
[1769440256790,0.24140984,124.27,124.16,112.8742]
[1769440256980,28.77434435,124.26,124.13,120.161]
[1769440257183,28.77434435,124.25,124.14,112.8917]
[1769440257386,0.24140984,124.27,124.17,112.8648]
[1769440257578,0.24140984,124.27,124.16,120.1291]
[1769440257784,28.77434435,124.26,124.12,112.9124]
[1769440258092,28.77434435,124.24,124.13,302.5792]
[1769440258281,28.77434435,124.26,124.14,112.8905]
[1769440258478,28.77434435,124.25,124.12,112.904]
[1769440258685,28.77434435,124.25,124.13,112.8999]
[1769440258879,28.77434435,124.25,124.15,112.8817]
[1769440259096,0.24140984,124.27,124.19,112.8461]
[1769440259281,29.01575419,124.27,124.16,189.92]
[1769440259589,28.77434435,124.26,124.16,189.92]
[1769440259793,141.58004435,124.24,124.13,190.26]
[1769440259999,28.77434435,124.23,124.13,303.1608]
[1769440260293,28.77434435,124.19,124.07,120.2103]
[1769440260490,267.93434435,124.23,124.11,112.9185]
[1769440260685,380.74724435,124.23,124.1,112.9222]
[1769440260887,29.01575419,124.27,124.15,112.882]
[1769440261092,28.77434435,124.25,124.13,112.8998]
[1769440261289,28.77434435,124.25,124.15,120.1385]
[1769440261483,0.24140984,124.27,124.19,112.8444]
[1769440261695,0.24140984,124.27,124.17,112.8646]
[1769440261696,7.2443,124.37,124.24,112.7974]
[1769440261986,112.6468,124.42,124.23,112.8092]
[1769440261987,141.40864435,124.43,124.29,112.7573]
[1769440262187,28.77432828,124.41,124.3,191.48]
[1769440262392,28.77432828,124.41,124.31,112.7361]
[1769440262588,28.77432828,124.41,124.3,112.7469]
[1769440262886,28.77432828,124.38,124.26,112.7814]
[1769440263496,28.77432828,124.35,124.22,112.8159]
[1769440263687,28.77432828,124.35,124.24,225.5918]
[1769440263988,28.77432828,124.33,124.2,112.8327]
[1769440264188,28.77432828,124.33,124.22,112.8142]
[1769440264692,148.76692828,124.31,124.19,192.6]
[1769440264880,28.77432828,124.31,124.2,112.8374]
[1769440265086,28.77432828,124.28,124.17,192.7]
[1769440265287,141.52402828,124.3,124.17,192.7]
[1769440265486,28.77432828,124.26,124.14,112.8882]
[1769440265688,28.77432828,124.26,124.14,305.7282]
[1769440265897,28.77432828,124.26,124.14,192.84]
[1769440266191,141.57312828,124.25,124.14,192.84]
[1769440266400,141.60762828,124.21,124.07,306.3098]
[1769440266598,141.60762828,124.21,124.07,306.3139]
[1769440266788,112.842,124.2,124.07,200.621]
[1769440267184,120.0965,124.2,124.07,313.5782]
[1769440267486,141.57552828,124.25,124.1,112.9271]
[1769440267691,28.77432828,124.22,124.09,112.9378]
[1769440267994,112.8416,124.2,124.07,193.36]
[1769440268198,112.8416,124.2,124.07,306.3168]
[1769440268397,7.2544,124.2,124.08,112.9443]
[1769440268596,120.0951,124.2,124.07,313.5783]
[1769440268900,112.8615,124.18,124.07,193.36]
[1769440269202,28.77432828,124.17,124.07,193.36]
[1769440269999,415.00752828,124.21,124.07,306.3118]
[1769440270200,309.42822828,124.21,124.08,112.9485]
[1769440270393,28.77432828,124.21,124.1,112.9258]
[1769440270598,28.77432828,124.21,124.09,112.9387]
[1769440270792,28.77432828,124.21,124.1,112.9284]
[1769440271001,28.77432828,124.21,124.1,112.9277]
[1769440271195,28.77432828,124.24,124.12,112.9124]
[1769440271400,28.77432828,124.24,124.11,195.16]
[1769440271401,415.27822828,124.24,124.11,195.16]
[1769440271597,141.58742828,124.23,124.11,195.16]
[1769440271899,28.77432828,124.21,124.11,195.16]
[1769440272800,28.77432828,124.3,124.18,112.8532]
[1769440273002,28.77432828,124.34,124.23,112.8104]
[1769440273208,28.77432828,124.34,124.24,197.4]
[1769440273509,28.77432828,124.38,124.26,112.7838]
[1769440273703,28.77432828,124.38,124.25,112.7925]
[1769440273901,28.77432828,124.37,124.27,112.7761]
[1769440274106,28.77432828,124.37,124.29,112.753]
[1769440274408,28.77432828,124.37,124.26,112.7842]
[1769440274700,28.77432828,124.37,124.28,120.0156]
[1769440274999,28.77432828,124.41,124.3,112.7487]
[1769440275203,28.77432828,124.4,124.28,112.7666]
[1769440275506,28.77432828,124.38,124.29,112.7548]
[1769440275901,28.77432828,124.38,124.27,174.7757]
[1769440276401,28.77432828,124.37,124.24,112.8]
[1769440276602,28.77432828,124.37,124.27,112.7758]
[1769440276801,28.77432828,124.37,124.27,112.7754]
[1769440276996,30.17422369,124.41,124.3,112.7483]
[1769440277197,28.77432828,124.41,124.3,112.7483]
[1769440277506,28.77432828,124.41,124.3,311.3883]
[1769440277900,28.77432828,124.41,124.31,7.247]
[1769440278293,28.77432828,124.41,124.3,198.64]
[1769440278699,28.77432828,124.38,124.27,198.6]
[1769440279300,36.01812828,124.38,124.27,205.8496]
[1769440279507,28.77432828,124.36,124.23,112.8046]
[1769440279706,28.77432828,124.35,124.24,120.053]
[1769440280004,28.77432828,124.35,124.26,112.7837]
[1769440280398,28.77432828,124.35,124.25,112.789]
[1769440280600,28.77432828,124.35,124.25,112.7931]
[1769440280804,28.77432828,124.35,124.24,118.85505843]
[1769440281002,28.77432828,124.35,124.26,112.7821]
[1769440281209,28.77432828,124.35,124.25,112.7921]
[1769440281397,28.77432828,124.35,124.24,6.05325843]
[1769440281597,28.77432828,124.35,124.25,112.7929]
[1769440282000,28.77432828,124.43,124.32,112.73]
[1769440282210,253.98,124.46,124.34,112.7111]
[1769440282415,112.5072,124.57,124.41,112.6488]
[1769440282603,112.4619,124.62,124.47,118.64325843]
[1769440282803,71.19885502,124.62,124.52,112.5427]
[1769440282999,77.25211345,124.62,124.52,112.5467]
[1769440283209,71.19885502,124.62,124.53,112.5383]
[1769440283410,71.19885502,124.62,124.54,112.5235]
[1769440283713,71.19885502,124.67,124.55,225.029]
[1769440284008,71.19885502,124.67,124.56,112.5108]
[1769440284310,71.19885502,124.67,124.57,112.4987]
[1769440284513,71.19885502,124.71,124.58,112.4929]
[1769440284708,71.19885502,124.68,124.55,112.5145]
[1769440284901,71.19885502,124.67,124.53,112.536]
[1769440285208,71.19885502,124.64,124.5,112.5656]
[1769440285398,71.19885502,124.64,124.49,112.5737]
[1769440285399,71.19885502,124.62,124.48,112.5852]
[1769440285603,71.19885502,124.62,124.47,112.5891]
[1769440285604,71.19885502,124.61,124.47,112.5891]
[1769440285809,71.19885502,124.58,124.44,112.6205]
[1769440286019,71.19885502,124.58,124.46,112.6006]
[1769440286220,71.19885502,124.57,124.43,112.6232]
[1769440286511,71.19885502,124.56,124.43,112.6232]
[1769440286697,183.71945502,124.56,124.42,322.6557]
[1769440286901,71.19885502,124.54,124.42,210.02]
[1769440287098,112.5438,124.53,124.42,210.02]
[1769440287314,183.73315502,124.54,124.42,210.02]
[1769440287511,112.5268,124.55,124.42,210.02]
[1769440287807,112.5342,124.54,124.42,210.02]
[1769440288002,112.5206,124.56,124.42,322.6568]
[1769440288205,112.5251,124.55,124.42,210.02]
[1769440288403,112.5811,124.49,124.35,225.4019]
[1769440288715,112.6341,124.43,124.31,235.5130783]
[1769440288915,112.589,124.48,124.34,112.7081]
[1769440289103,112.573,124.5,124.36,112.6921]
[1769440289306,112.6071,124.46,124.35,211.6]
[1769440289501,71.19885502,124.51,124.38,112.6739]
[1769440289712,71.19885502,124.51,124.39,112.6602]
[1769440290016,112.5521,124.52,124.37,112.6815]
[1769440290318,183.71155502,124.57,124.42,112.6346]
[1769440290608,112.5362,124.54,124.42,212.48]
[1769440290814,112.5545,124.52,124.39,212.58]
[1769440291201,112.5716,124.5,124.39,212.58]
[1769440291513,71.19885502,124.51,124.39,212.58]
[1769440291711,183.72685502,124.55,124.4,119.53346866]
[1769440291900,71.19885502,124.52,124.39,212.58]
[1769440292212,112.5251,124.55,124.4,119.5332485]
[1769440292509,112.5461,124.53,124.41,6.8798485]
[1769440292818,112.5166,124.56,124.42,6.88191415]
[1769440293015,112.525,124.55,124.43,6.88191415]
[1769440293213,71.19885502,124.59,124.39,212.58]
[1769440293214,71.19885502,124.62,124.47,112.5912]
[1769440293415,71.19885502,124.62,124.49,112.5743]
[1769440293713,71.19885502,124.62,124.48,326.2035]
[1769440293907,71.19885502,124.6,124.48,213.62]
[1769440294108,71.19885502,124.6,124.42,112.633]
[1769440294109,112.526,124.55,124.4,236.43930565]
[1769440294311,71.19885502,124.52,124.41,6.88771898]
[1769440294513,71.19885502,124.52,124.4,214.28]
[1769440295012,71.19885502,124.52,124.4,326.9343]
[1769440295315,71.19885502,124.56,124.41,112.6465]
[1769440295507,183.73285502,124.54,124.4,214.28]
[1769440295707,71.19885502,124.51,124.4,214.28]
[1769440296006,71.19885502,124.5,124.4,214.28]
[1769440296314,71.19885502,124.54,124.39,112.6619]
[1769440296515,71.19885502,124.52,124.37,328.3817]
[1769440296714,183.76325502,124.51,124.37,215.7]
[1769440296914,71.19885502,124.49,124.37,215.7]
[1769440297210,71.19885502,124.53,124.38,112.6739]
[1769440297408,71.19885502,124.53,124.4,112.6559]
[1769440297615,71.19885502,124.53,124.41,112.6467]
[1769440297806,71.19885502,124.53,124.41,7.2414]
[1769440298413,71.19885502,124.53,124.41,119.8902]
[1769440298720,71.19885502,124.57,124.46,112.6009]
[1769440298912,71.19885502,124.57,124.48,112.5852]
[1769440299105,71.19885502,124.57,124.47,330.2102]
[1769440299415,71.19885502,124.57,124.47,217.62]
[1769440300215,183.72455502,124.55,124.41,225.2916]
[1769440300520,71.19885502,124.54,124.42,330.8961]
[1769440300721,71.19885502,124.54,124.42,225.501]
[1769440300917,71.19885502,124.54,124.42,338.1407]
[1769440301117,71.19885502,124.54,124.42,225.501]
[1769440301313,71.19885502,124.54,124.43,119.8693]
[1769440301519,71.19885502,124.54,124.42,219.04]
[1769440301716,71.19885502,124.54,124.42,331.6774]
[1769440301916,71.19885502,124.54,124.45,112.61]
[1769440302215,71.19885502,124.59,124.48,112.5857]
[1769440302415,71.19885502,124.59,124.48,7.2372]
[1769440302616,71.19885502,124.58,124.44,112.6213]
[1769440302809,71.19885502,124.56,124.44,7.2399]
[1769440303217,71.19885502,124.56,124.44,119.8619]
[1769440303412,71.19885502,124.55,124.42,338.913]
[1769440303723,71.19885502,124.53,124.42,226.2809]
[1769440303912,190.97525502,124.53,124.42,219.04]
[1769440304113,71.19885502,124.52,124.42,219.04]
[1769440304314,71.19885502,124.51,124.4,7.242]
[1769440304615,71.19885502,124.5,124.38,119.9167]
[1769440304822,71.19885502,124.5,124.41,112.648]
[1769440305017,71.19885502,124.5,124.42,7.98541243]
[1769440305222,71.19885502,124.5,124.43,7.98541243]
[1769440305423,71.19885502,124.55,124.45,112.6128]
[1769440305624,71.19885502,124.55,124.46,7.98541243]
[1769440305817,71.19885502,124.55,124.47,7.98541243]
[1769440306019,71.19885502,124.55,124.48,7.98541243]
[1769440306219,71.19885502,124.55,124.45,7.2389]
[1769440306418,71.19885502,124.55,124.45,119.8515]
[1769440306621,71.19885502,124.55,124.45,7.2389]
[1769440306822,67.2061488,124.52,124.4,112.6583]
[1769440307015,67.2061488,124.51,124.4,112.658]
[1769440307219,67.2061488,124.51,124.42,112.6401]
[1769440307518,67.2061488,124.51,124.44,112.6213]
[1769440308321,74.4399488,124.55,124.44,112.6213]
[1769440308531,67.2061488,124.55,124.45,112.6087]
[1769440309026,67.2061488,124.55,124.44,112.6213]
[1769440309323,67.2061488,124.55,124.43,112.6284]
[1769440309829,67.2061488,124.52,124.4,112.6538]
[1769440310030,67.2061488,124.51,124.39,112.6586]
[1769440310221,67.2061488,124.49,124.4,7.2422]
[1769440310421,67.2061488,124.49,124.37,333.0372]
[1769440310619,67.2061488,124.49,124.38,112.6751]
[1769440310815,67.2061488,124.49,124.39,7.2425]
[1769440311016,67.2061488,124.49,124.39,112.6633]
[1769440311221,127.33226856,124.54,124.41,112.6489]
[1769440311222,67.2061488,124.53,124.41,112.6489]
[1769440311423,67.2061488,124.53,124.42,7.2407]
[1769440311628,67.2061488,124.53,124.41,112.6489]
[1769440312229,74.4410488,124.53,124.41,7.2413]
[1769440312629,74.4410488,124.53,124.4,112.6522]
[1769440312829,67.2061488,124.52,124.4,7.2419]
[1769440313626,67.2061488,124.51,124.37,333.0421]
[1769440313832,67.2061488,124.5,124.37,333.0421]
[1769440314128,67.2061488,124.49,124.37,220.36]
[1769440314340,67.2061488,124.47,124.33,112.7128]
[1769440314531,67.2061488,124.46,124.33,334.8928]
[1769440314738,67.2061488,124.43,124.33,222.18]
[1769440315124,67.2061488,124.43,124.31,235.5130783]
[1769440315335,67.2061488,124.41,124.31,235.5130783]
[1769440316039,112.6152,124.45,124.33,7.2463]
[1769440316224,67.2061488,124.44,124.31,235.5130783]
[1769440316735,74.4471488,124.43,124.32,230.6467]
[1769440317130,67.2061488,124.42,124.29,7.14816474]
[1769440317442,67.2061488,124.39,124.28,112.7661]
[1769440317734,384.04411736,124.43,124.3,112.7479]
[1769440317936,82.00411736,124.43,124.32,112.7297]
[1769440318128,82.00411736,124.43,124.32,223.88]
[1769440318440,74.4474488,124.42,124.32,231.1267]
[1769440318733,74.4474488,124.42,124.29,7.14816474]
[1769440318930,82.00411736,124.43,124.3,112.7463]
[1769440319434,7.2419,124.41,124.3,7.2479]
[1769440319636,74.4480488,124.41,124.3,7.2479]
[1769440320040,127.43146856,124.43,124.27,336.7522]
[1769440320041,82.00411736,124.39,124.27,7.14816474]
[1769440320335,67.2061488,124.39,124.29,112.7572]
[1769440320633,67.2061488,124.39,124.3,7.2479]
[1769440320835,67.2061488,124.41,124.29,112.757]
[1769440321039,74.4482488,124.41,124.31,7.2474]
[1769440321231,67.2061488,124.41,124.31,112.7381]
[1769440321539,67.2061488,124.41,124.28,119.91166474]
[1769440321739,67.2061488,124.41,124.29,224.54]
[1769440322033,67.2061488,124.39,124.28,224.7]
[1769440322433,67.2061488,124.37,124.27,7.2495]
[1769440322635,67.2061488,124.33,124.22,179.81048812]
[1769440322935,67.2061488,124.28,124.17,7.14816474]
[1769440323133,67.2061488,124.27,124.15,112.8808]